bitfinex/quotes_ETHUSD_20210701
["timestamp","ask_amount","ask_price","bid_price","bid_amount"]
[1625165616945,11.42431,2119.9,2119.1,9.431]
[1625165617093,8.63311866,2119.9,2119.1,9.431]
[1625165617294,8.63311866,2119.9,2119.2,0.16]
[1625165617495,8.63311866,2119.9,2119.1,9.431]
[1625165617693,8.63311866,2119.9,2119.0,5.01]
[1625165618500,8.63311866,2119.9,2119.1,9.431]
[1625165618697,8.63311866,2119.9,2119.2,0.16]
[1625165618898,8.63311866,2119.9,2119.1,9.431]
[1625165618996,9.43308,2120.0,2119.1,9.431]
[1625165619511,7.07522,2119.7,2118.9,17.66772]
[1625165619611,9.43308,2120.0,2118.9,17.66772]
[1625165619760,9.43308,2120.0,2119.0,0.16]
[1625165619961,13.56698,2120.0,2118.9,7.07522]
[1625165620664,13.56698,2120.0,2118.6,10.7606]
[1625165620767,7.07584,2119.5,2118.6,10.7606]
[1625165620869,11.29694,2119.5,2118.6,10.7606]
[1625165621065,11.29694,2119.5,2118.5,82.5336468]
[1625165621165,11.29694,2119.5,2118.4,10.7129]
[1625165621315,0.26958939,2119.4,2118.6,0.1]
[1625165621456,4.45822372,2119.5,2118.2,16.8243]
[1625165621602,0.04,2119.4,2118.2,16.8243]
[1625165621700,0.27550636,2119.4,2118.2,16.8243]
[1625165621803,4.46974031,2119.5,2118.2,9.9543]
[1625165622006,7.07812,2118.9,2118.2,9.9543]
[1625165622156,11.86882,2118.9,2118.0,10.9907]
[1625165622306,7.68034248,2118.9,2118.0,10.9907]
[1625165622453,7.68034248,2118.9,2118.1,0.16]
[1625165622703,7.68034248,2118.9,2117.9,47.2685301]
[1625165623108,4.7907,2118.9,2117.9,54.1971001]
[1625165623207,4.7907,2118.9,2117.9,66.77757139]
[1625165623406,4.7907,2118.9,2118.0,0.16]
[1625165623812,4.7907,2118.9,2118.1,2.25695419]
[1625165624266,4.7907,2118.9,2118.1,4.58047129]
[1625165624464,4.7907,2118.9,2118.2,0.04]
[1625165624718,4.7907,2118.9,2118.5,7.07696]
[1625165625623,10.0625,2119.9,2118.5,7.07696]
[1625165625723,12.47575196,2120.0,2118.5,7.07696]
[1625165625827,7.07565,2119.8,2118.6,0.16]
[1625165625957,0.52888196,2120.0,2118.7,0.15]
[1625165626059,1.72045125,2120.1,2118.7,0.15]
[1625165626159,1.72045125,2120.1,2118.8,0.06]
[1625165626259,0.52888196,2120.2,2118.8,3.5418]
[1625165626357,0.52888196,2120.2,2118.8,3.6318]
[1625165627108,7.60322196,2120.2,2118.9,9.43346]
[1625165628459,7.60322196,2120.2,2118.9,9.38346]
[1625165628562,7.60322196,2120.2,2118.7,12.77075419]
[1625165628659,0.04,2120.1,2118.7,10.5138]
[1625165628763,3.53822,2120.0,2118.7,10.5138]
[1625165628910,4.20710196,2120.0,2118.7,10.5138]
[1625165629012,9.21710196,2120.0,2118.7,10.5138]
[1625165629160,7.07662,2119.4,2118.7,10.5138]
[1625165629458,7.07662,2119.4,2118.6,9.43292]
[1625165630014,7.07662,2119.4,2118.5,2.3235171]
[1625165631361,7.07662,2119.4,2118.1,21.2897]
[1625165631362,2.62176879,2119.3,2118.1,21.2897]
[1625165631460,2.82176879,2119.3,2118.1,10.862]
[1625165631613,6.42406879,2119.3,2118.1,10.862]
[1625165631713,0.08,2119.2,2118.1,10.862]
[1625165631908,10.01754135,2119.3,2118.1,10.862]
[1625165632310,7.07889,2118.7,2118.1,10.862]
[1625165632560,7.07889,2118.7,2117.7,53.4051243]
[1625165632704,2.89024723,2118.7,2117.7,53.4051243]
[1625165632804,0.09777586,2118.7,2117.8,0.04]
[1625165632906,21.15,2118.6,2117.7,53.1951243]
[1625165633007,9.43839,2119.0,2117.7,53.1951243]
[1625165633157,9.43839,2119.0,2117.7,61.1951243]
[1625165633558,8.72060135,2119.3,2118.0,9.43722]
[1625165633657,5.18124135,2119.3,2118.0,59.19353594]
[1625165633759,5.18124135,2119.3,2118.0,14.44722]
[1625165633959,2.62176879,2119.3,2118.0,14.44722]
[1625165634055,2.62176879,2119.3,2118.1,0.12]
[1625165634210,2.62176879,2119.3,2118.0,14.44722]
[1625165635464,7.07792,2119.2,2118.5,7.07761]
[1625165635568,0.52888196,2119.4,2118.5,11.14731]
[1625165635717,9.43627,2119.5,2118.5,11.14731]
[1625165635817,14.44627,2119.5,2118.5,11.14731]
[1625165636369,9.43627,2119.5,2118.5,11.14731]
[1625165636469,7.07809,2119.1,2118.5,4.0697]
[1625165636616,7.07809,2119.1,2118.4,1.2532]
[1625165636716,7.07809,2119.1,2118.1,9.43745]
[1625165636920,0.04,2119.0,2118.1,9.43745]
[1625165637200,0.93889357,2119.1,2118.1,9.43745]
[1625165637258,2.24933321,2119.4,2118.1,9.43745]
[1625165637359,22.24933321,2119.4,2118.1,9.43745]
[1625165637557,9.43779,2119.3,2118.6,7.07872]
[1625165637759,14.64779,2119.3,2118.6,7.07872]
[1625165637859,5.21,2119.3,2118.6,7.07872]
[1625165638063,20.0,2119.2,2118.6,7.07872]
[1625165638158,5.21,2119.3,2118.6,7.07872]
[1625165638258,0.06,2119.1,2118.6,7.07872]
[1625165640301,7.25933321,2119.4,2118.6,7.07872]
[1625165640701,2.24933321,2119.4,2118.6,7.07872]
[1625165640803,1.72045125,2119.4,2118.6,7.07872]
[1625165641149,0.06,2119.3,2118.6,7.07872]
[1625165641252,5.08527717,2119.5,2118.6,7.07872]
[1625165641551,0.52888196,2119.6,2118.6,7.07872]
[1625165641739,0.52888196,2119.6,2118.6,11.14992]
[1625165641838,0.52888196,2119.6,2118.6,16.15992]
[1625165641988,0.52888196,2119.6,2118.8,8.1322272]
[1625165642186,0.52888196,2119.6,2118.8,13.1422272]
[1625165642939,0.52888196,2119.6,2119.2,7.07584]
[1625165643137,0.52888196,2120.1,2119.2,7.07584]
[1625165643337,0.70888196,2120.1,2119.2,7.07584]
[1625165644327,0.18,2120.1,2119.2,7.07584]
[1625165645370,0.70888196,2120.1,2119.2,7.07584]
[1625165645575,0.04,2120.0,2119.2,7.07584]
[1625165646246,0.52888196,2120.1,2119.2,15.72494]
[1625165646332,4.52888196,2120.4,2119.2,10.71494]
[1625165646428,4.52888196,2120.4,2119.3,0.15]
[1625165646583,4.52888196,2120.4,2119.3,5.19137033]
[1625165646778,0.52888196,2120.4,2119.4,0.04]
[1625165646933,0.52888196,2120.4,2119.5,0.15]
[1625165647134,0.52888196,2120.4,2119.9,7.0719]
[1625165647234,0.52888196,2120.4,2119.9,11.1394]
[1625165647330,0.52888196,2121.1,2119.9,16.1494]
[1625165647582,10.8245,2121.2,2119.9,22.11887033]
[1625165647684,1.72045125,2121.5,2120.0,3.6856473]
[1625165647783,1.72045125,2121.5,2120.3,4.96832]
[1625165647884,1.72045125,2121.5,2120.3,6.54302]
[1625165647981,1.72045125,2121.5,2120.4,0.15]
[1625165648131,1.72045125,2121.5,2120.4,4.0276]
[1625165648329,10.3012,2121.7,2120.4,9.0376]
[1625165648471,20.6524,2121.9,2120.9,7.06954]
[1625165648564,10.2514,2121.9,2120.8,9.4258]
[1625165648716,0.12,2121.6,2120.8,9.4258]
[1625165648816,23.0804,2122.4,2120.8,14.4358]
[1625165648915,3.1,2122.3,2120.8,14.4358]
[1625165649562,10.1686,2122.3,2120.8,9.4258]
[1625165649711,0.04,2122.2,2120.8,9.4258]
[1625165650115,8.11,2122.3,2120.5,2.8801]
[1625165650116,8.1,2122.3,2120.5,2.8801]
[1625165650261,8.1,2122.3,2120.5,7.8901]
[1625165650359,8.1,2122.3,2120.5,2.8801]
[1625165650812,8.1,2122.3,2120.5,7.8901]
[1625165651316,9.42635,2122.0,2120.5,15.93715]
[1625165651417,9.42635,2122.0,2120.5,14.43685]
[1625165651516,14.43635,2122.0,2120.5,14.43685]
[1625165652468,7.06991,2121.7,2120.6,7.06998]
[1625165652571,12.07991,2121.7,2120.6,7.06998]
[1625165652989,9.42635,2122.0,2120.6,7.06998]
[1625165653078,20.0,2122.1,2120.6,12.07998]
[1625165653181,0.06,2122.2,2120.6,12.07998]
[1625165653327,8.1,2122.3,2120.6,20.07998]
[1625165653426,8.1,2122.3,2120.6,13.01]
[1625165653626,8.1,2122.3,2120.6,5.01]
[1625165653730,8.1,2122.3,2120.5,17.57075]
[1625165653930,7.06892,2122.0,2120.9,7.06892]
[1625165654230,12.07892,2122.0,2120.9,7.06892]
[1625165654328,7.06892,2122.0,2120.9,7.06892]
[1625165654480,12.07892,2122.0,2120.9,7.06892]
[1625165654631,7.06892,2122.0,2120.9,7.06892]
[1625165654728,12.07892,2122.0,2120.5,14.43685]
[1625165655632,12.07892,2122.0,2120.8,7.06948]
[1625165657583,12.02892,2122.0,2120.8,7.06948]
[1625165658036,12.02892,2122.0,2120.8,11.09478]
[1625165660631,5.01,2122.0,2120.8,11.09478]
[1625165660732,1.72045125,2122.2,2120.8,16.10478]
[1625165660980,1.72045125,2122.2,2120.8,24.25478]
[1625165661331,3.09,2122.3,2120.8,24.25478]
[1625165661434,3.09,2122.3,2120.8,16.25478]
[1625165661534,3.09,2122.3,2120.8,24.25478]
[1625165661686,3.09,2122.3,2121.5,10.21488]
[1625165661881,3.09,2122.3,2121.5,15.22488]
[1625165663490,3.09,2122.3,2121.5,10.21488]
[1625165663786,3.09,2122.3,2121.5,3.1475]
[1625165663887,3.09,2122.3,2121.3,10.66307]
[1625165663888,3.09,2122.3,2121.3,9.42317]
[1625165663997,8.1,2122.3,2121.3,9.42317]
[1625165664093,3.09,2122.3,2121.0,10.7204]
[1625165664239,20.0,2122.0,2120.5,20.25155]
[1625165664335,7.07073,2121.6,2120.6,7.07011]
[1625165664535,7.07073,2121.6,2120.2,11.77971]
[1625165664536,12.08073,2121.6,2120.2,11.77971]
[1625165664633,7.30372304,2121.6,2120.2,11.77971]
[1625165664731,12.08073,2121.6,2120.2,11.77971]
[1625165664933,7.07073,2121.6,2120.2,11.77971]
[1625165665286,12.08073,2121.6,2120.2,11.77971]
[1625165665384,7.07073,2121.6,2120.1,7.07149]
[1625165665483,12.32020882,2121.6,2120.1,7.07149]
[1625165665588,7.31020882,2121.6,2120.1,7.07149]
[1625165665690,20.0,2121.2,2119.8,20.4051]
[1625165665843,23.5045,2121.2,2119.8,20.4051]
[1625165665937,8.5145,2121.2,2119.8,20.4051]
[1625165666581,8.5145,2121.2,2119.9,7.0721]
[1625165666582,9.43014,2121.1,2119.9,7.0721]
[1625165666684,16.75082,2121.2,2119.8,27.2751]
[1625165666780,16.98296648,2121.2,2119.8,27.2751]
[1625165666879,16.75082,2121.2,2119.8,27.2751]
[1625165667030,16.98378272,2121.2,2119.8,27.2751]
[1625165667130,36.98378272,2121.2,2119.8,27.2751]
[1625165667432,29.91166272,2121.2,2119.8,27.2751]
[1625165667530,29.91166272,2121.2,2119.8,20.4051]
[1625165667631,9.91166272,2121.2,2119.8,20.4051]
[1625165667732,7.07237,2121.1,2119.8,20.4051]
[1625165668435,9.6787,2121.2,2119.8,25.4151]
[1625165668850,9.6787,2121.2,2120.0,9.42865]
[1625165669101,2.5,2121.0,2119.8,20.4051]
[1625165669296,2.5,2121.0,2119.8,9.9931]
[1625165670450,7.07296,2120.9,2119.8,17.06577]
[1625165670549,12.08296,2120.9,2119.8,17.06577]
[1625165671074,12.08296,2120.9,2119.8,22.07577]
[1625165671175,7.07296,2120.9,2119.8,22.07577]
[1625165671376,12.08296,2120.9,2119.8,17.06577]
[1625165671479,12.08296,2120.9,2119.8,22.07577]
[1625165671928,12.08296,2120.9,2119.8,17.06577]
[1625165672929,12.08296,2120.9,2119.8,22.07577]
[1625165674592,7.07296,2120.9,2119.8,22.07577]
[1625165674798,2.5,2121.0,2119.9,0.06]
[1625165675243,9.57194,2121.0,2120.0,9.4286]
[1625165675484,9.57194,2121.0,2119.8,15.0031]
[1625165675934,13.10885,2121.0,2119.8,15.0031]
[1625165676032,11.04691,2121.0,2119.8,15.0031]
[1625165676383,12.76736125,2121.0,2119.8,15.0031]
[1625165676783,20.0,2120.8,2119.5,9.43061]
[1625165676889,7.0744,2120.3,2119.4,10.0762]
[1625165676989,1.3258,2120.4,2119.4,10.0762]
[1625165677134,4.6355,2120.4,2119.4,17.7244]
[1625165677286,20.0,2120.3,2119.4,17.7244]
[1625165677388,20.0,2120.3,2119.4,6.87]
[1625165677489,5.01,2120.3,2119.4,6.87]
[1625165677587,0.16,2120.2,2119.4,6.87]
[1625165678341,7.07568,2119.9,2119.4,6.87]
[1625165678489,11.14808,2119.9,2119.4,6.87]
[1625165678585,0.2,2119.8,2119.4,6.87]
[1625165678681,0.2,2119.8,2118.8,10.7641]
[1625165678787,3.4,2119.7,2118.8,10.7641]
[1625165678985,3.4,2119.7,2118.7,0.02199473]
[1625165678986,0.08,2119.6,2118.7,0.02199473]
[1625165679487,10.38483,2119.3,2118.7,0.02199473]
[1625165681740,3.3068,2119.3,2118.7,0.02199473]
[1625165681844,17.84687,2119.7,2118.7,0.02199473]
[1625165681946,8.41,2119.7,2118.7,0.02199473]
[1625165682344,20.0,2119.4,2118.7,0.02199473]
[1625165682445,4.788,2119.4,2118.7,0.02199473]
[1625165682592,29.798,2119.4,2118.7,0.02199473]
[1625165682697,24.788,2119.4,2118.7,0.02199473]
[1625165682795,29.798,2119.4,2118.7,0.02199473]
[1625165682894,9.798,2119.4,2118.7,0.02199473]
[1625165683348,7.07892,2119.2,2118.7,0.02199473]
[1625165683546,12.08892,2119.2,2118.7,0.02199473]
[1625165683646,0.2,2119.1,2118.7,0.02199473]
[1625165683951,5.72045125,2119.6,2118.7,0.02199473]
[1625165684097,5.01,2119.5,2118.7,0.02199473]
[1625165684197,10.73045125,2119.6,2118.7,0.02199473]
[1625165684298,4.0,2119.6,2118.7,0.02199473]
[1625165684477,12.91,2119.6,2118.7,0.02199473]
[1625165684535,19.98726,2119.6,2118.7,0.02199473]
[1625165684836,15.98726,2119.6,2118.7,0.02199473]
[1625165684937,0.16,2119.5,2118.7,0.02199473]
[1625165685036,3.3761,2119.5,2118.7,0.02199473]
[1625165685235,8.3861,2119.5,2118.7,0.02199473]
[1625165685337,8.1361,2119.5,2118.7,0.02199473]
[1625165685786,15.21356,2119.5,2118.7,0.02199473]
[1625165686751,8.1361,2119.5,2118.7,0.02199473]
[1625165687852,20.0,2119.1,2118.7,0.02199473]
[1625165687955,7.07952,2118.9,2118.7,0.02199473]
[1625165688051,12.06282,2118.9,2118.7,0.02199473]
[1625165689046,1.282,2119.0,2118.7,0.02199473]
[1625165689338,21.2771,2119.3,2118.7,0.02199473]
[1625165689441,5.01,2119.2,2118.7,0.02199473]
[1625165689535,26.2871,2119.3,2118.7,0.02199473]
[1625165689789,15.5182,2119.3,2118.7,0.02199473]
[1625165690287,17.23865125,2119.3,2118.7,0.02199473]
[1625165690738,7.0786,2119.1,2118.7,0.02199473]
[1625165691946,10.1219,2119.1,2118.7,0.02199473]
[1625165692145,0.06,2119.0,2118.7,0.02199473]
[1625165692347,1.72045125,2119.2,2118.7,0.02199473]
[1625165693154,7.07933,2118.9,2118.7,0.02199473]
[1625165693256,10.99403,2118.9,2118.7,0.02199473]
[1625165693558,16.00403,2118.9,2117.5,30.8276]
[1625165693653,0.06,2118.8,2117.5,30.8276]
[1625165693848,17.48723,2118.9,2117.5,30.8276]
[1625165693849,10.63980925,2118.9,2117.5,30.8276]
[1625165694049,20.0,2118.8,2117.5,30.8276]
[1625165694148,0.23940371,2118.7,2117.5,10.2127]
[1625165694410,7.08158,2118.3,2117.5,10.2127]
[1625165694602,10.74168,2118.3,2117.5,10.2127]
[1625165694753,10.74168,2118.3,2117.4,6.87]
[1625165694852,7.94794214,2118.3,2117.6,0.08]
[1625165695201,7.94794214,2118.3,2117.4,6.87]
[1625165695451,7.94794214,2118.3,2117.4,13.95081]
[1625165696047,3.6601,2118.3,2117.4,13.95081]
[1625165696148,3.6601,2118.3,2117.4,18.96081]
[1625165696251,10.917,2118.7,2117.4,18.96081]
[1625165696349,10.917,2118.7,2117.5,0.06]
[1625165696597,15.486,2118.7,2117.4,6.87]
[1625165696799,20.496,2118.7,2117.4,6.87]
[1625165696897,20.496,2118.7,2117.4,11.88]
[1625165697246,22.21645125,2118.7,2117.4,11.88]
[1625165697501,29.29654125,2118.7,2117.5,9.43991]
[1625165697703,29.29654125,2118.7,2117.5,14.44991]
[1625165697704,13.36954125,2118.7,2117.5,14.44991]
[1625165697803,6.28945125,2118.7,2117.5,14.44991]
[1625165697989,1.72045125,2118.7,2117.5,22.44991]
[1625165698048,1.72045125,2118.7,2117.6,0.04]
[1625165698299,0.52874174,2119.1,2117.6,0.15]
[1625165698392,0.52874174,2119.1,2117.5,1.1974]
[1625165698494,0.52874174,2119.1,2117.3,0.01434105]
[1625165698604,0.52874174,2119.1,2117.4,7.08093]
[1625165698605,7.0812,2118.4,2117.4,7.08093]
[1625165698943,9.44046,2118.9,2117.4,7.08093]
[1625165699043,9.44046,2118.9,2117.5,0.08]
[1625165699446,14.45046,2118.9,2117.3,0.98814105]
[1625165699544,18.78146,2118.9,2117.3,0.98814105]
[1625165699703,7.08119,2118.3,2117.3,0.98814105]
[1625165699943,10.54649,2118.3,2117.3,0.98814105]
[1625165700392,15.55649,2118.3,2117.3,0.01434105]
[1625165700595,19.45649,2118.3,2117.3,0.01434105]
[1625165700999,19.45649,2118.3,2116.9,0.01434105]
[1625165701446,39.45649,2118.3,2117.0,6.83205]
[1625165701601,0.23934515,2118.2,2116.8,22.33474]
[1625165701699,12.3753,2118.3,2116.8,22.33474]
[1625165701802,8.4753,2118.3,2116.8,22.33474]
[1625165702048,20.0,2118.2,2116.8,10.5357]
[1625165702246,5.01,2118.2,2116.8,10.5357]
[1625165702502,6.73045125,2118.3,2116.8,10.5357]
[1625165702751,7.08215,2118.1,2116.8,23.5457]
[1625165702851,1.72045125,2118.3,2116.8,23.5457]
[1625165702954,1.72045125,2118.3,2116.9,0.2]
[1625165703203,1.72045125,2118.3,2116.8,26.001456]
[1625165703302,9.43045125,2118.4,2116.8,26.001456]
[1625165703400,9.43045125,2118.4,2116.8,18.001456]
[1625165704104,9.43045125,2118.4,2116.9,2.2022]
[1625165704203,4.42045125,2118.4,2116.9,2.3422]
[1625165704397,2.7,2118.4,2116.9,2.3422]
[1625165704491,2.7,2118.4,2116.9,4.797956]
[1625165704592,2.7,2118.4,2117.0,0.2]
[1625165704852,2.7,2118.4,2117.0,0.35]
[1625165705004,2.7,2118.4,2117.0,0.3]
[1625165705306,2.7,2118.4,2117.5,7.08014]
[1625165705511,2.7,2118.4,2117.5,12.09014]
[1625165706003,2.7,2118.4,2117.5,20.09014]
[1625165706105,2.7,2118.4,2117.5,28.01]
[1625165706206,2.7,2118.4,2117.6,2.51336195]
[1625165706404,2.7,2118.4,2117.7,0.04]
[1625165706504,2.7,2118.4,2118.0,7.0782]
[1625165706602,2.7,2118.4,2118.0,10.6455]
[1625165706704,2.7,2118.4,2118.0,15.6555]
[1625165707707,2.7,2118.4,2118.0,10.6455]
[1625165707802,2.7,2118.4,2118.0,3.5673]
[1625165707954,2.7,2118.4,2117.8,9.43742]
[1625165708908,2.7,2118.4,2117.9,0.08]
[1625165709106,2.7,2118.4,2117.9,4.8804]
[1625165709400,2.7,2118.4,2117.9,9.8904]
[1625165709502,0.0322503,2118.2,2117.9,4.8804]
[1625165709601,0.0322503,2118.2,2117.9,9.8904]
[1625165709699,0.01738177,2118.2,2117.9,4.8804]
[1625165709800,0.01738177,2118.2,2117.9,9.8904]
[1625165709900,0.01738177,2118.2,2118.0,0.18]
[1625165710004,0.01738177,2118.2,2118.1,22.12767]
[1625165710101,0.52874174,2119.1,2118.1,7.07767]
[1625165710200,0.52874174,2119.1,2118.2,18.25]
[1625165710401,0.52874174,2119.1,2118.2,23.26]
[1625165710502,0.52874174,2119.1,2118.2,5.01]
[1625165710602,20.3489,2119.2,2118.0,10.72969]
[1625165710704,25.3589,2119.2,2118.0,10.72969]
[1625165710805,0.06,2119.1,2118.0,1.2928]
[1625165711103,7.0794,2118.6,2117.8,7.07936]
[1625165712212,7.0794,2118.6,2117.8,12.08936]
[1625165712713,7.07893,2118.8,2117.8,12.08936]
[1625165712913,7.07893,2118.8,2117.9,0.2]
[1625165713163,7.07893,2118.8,2117.7,22.44871]
[1625165713263,20.3489,2119.2,2117.7,22.44871]
[1625165713806,20.3489,2119.2,2118.4,7.07761]
[1625165713807,10.2388,2119.2,2118.4,7.07761]
[1625165713912,54.60761125,2119.7,2118.4,7.07761]
[1625165714057,21.82011125,2119.7,2118.5,0.2]
[1625165714156,1.72045125,2119.7,2118.5,0.2]
[1625165714259,4.0,2119.8,2118.5,2.7524414]
[1625165714406,4.0,2119.8,2118.6,0.04]
[1625165714507,4.0,2119.8,2118.6,4.0116]
[1625165714604,0.52874174,2120.0,2118.6,22.5489395]
[1625165714705,0.52874174,2120.0,2118.8,4.99168]
[1625165714810,0.52874174,2120.0,2118.8,19.99168]
[1625165714916,10.6495,2120.3,2119.5,7.0733]
[1625165715008,10.6495,2120.3,2119.5,16.7106]
[1625165715108,10.6495,2120.3,2119.6,0.18]
[1625165715261,10.9649,2120.4,2118.9,19.70026806]
[1625165715356,10.9649,2120.4,2118.9,19.55026806]
[1625165715458,10.9649,2120.4,2118.9,16.99782666]
[1625165715459,30.9649,2120.4,2118.9,16.99782666]
[1625165715608,10.9649,2120.4,2118.9,14.44304]
[1625165716011,10.9649,2120.4,2118.9,22.44304]
[1625165716207,10.9649,2120.4,2118.9,24.03874]
[1625165716515,15.9749,2120.4,2118.9,16.03874]
[1625165716617,35.9749,2120.4,2118.9,11.02874]
[1625165716716,43.9749,2120.4,2118.9,1.4457]
[1625165716810,17.308,2120.3,2118.9,1.4457]
[1625165717065,7.0766,2119.7,2118.9,1.4457]
[1625165717263,12.0866,2119.7,2118.2,37.62922]
[1625165718350,12.0866,2119.7,2118.2,30.5517]
[1625165718450,20.0,2119.6,2118.2,30.5517]
[1625165718555,25.01,2119.6,2118.2,30.5517]
[1625165718749,5.01,2119.6,2118.2,30.5517]
[1625165718951,5.01,2119.7,2118.2,30.5517]
[1625165719054,42.80619,2119.8,2118.2,30.6117]
[1625165719249,42.80619,2119.8,2118.2,30.5517]
[1625165719469,42.80619,2119.8,2118.2,42.63925]
[1625165719470,7.07842,2119.1,2118.2,42.63925]
[1625165719568,7.07842,2119.1,2118.2,15.0321]
[1625165719569,15.95422,2119.1,2118.2,15.0321]
[1625165719764,15.95422,2119.1,2118.2,5.01]
[1625165719867,15.95422,2119.1,2118.0,14.44674]
[1625165720066,0.01738177,2118.6,2118.0,14.39674]
[1625165720869,0.01738177,2118.6,2118.0,5.01]
[1625165720870,3.25378177,2118.6,2118.0,5.01]
[1625165721123,8.26378177,2118.6,2117.4,11.79406]
[1625165721222,3.25378177,2118.6,2117.4,11.79406]
[1625165721321,8.26378177,2118.6,2117.5,0.16]
[1625165721574,8.26378177,2118.6,2117.2,10.2443]
[1625165721575,8.49842225,2118.6,2117.2,10.2443]
[1625165721718,8.26378177,2118.6,2117.2,10.2443]
[1625165721820,8.49504439,2118.6,2117.2,10.2443]
[1625165721928,20.0,2118.4,2117.0,28.54462]
[1625165722077,25.01,2118.4,2117.0,17.68902]
[1625165722328,0.25261428,2118.3,2117.0,17.53902]
[1625165722420,0.25261428,2118.3,2117.0,10.4576]
[1625165722956,0.27364152,2118.4,2117.0,10.4576]
[1625165723261,1.99409277,2118.4,2117.0,10.4576]
[1625165723409,7.08206,2117.9,2116.9,13.95237]
[1625165723515,15.49066,2117.9,2116.9,13.95237]
[1625165723717,8.4086,2117.9,2116.9,6.87]
[1625165724664,15.49066,2117.9,2116.9,13.95254]
[1625165724863,8.4086,2117.9,2116.9,13.95254]
[1625165725042,3.3986,2117.9,2116.9,18.96254]
[1625165725143,1.211,2118.0,2116.9,18.96254]
[1625165725244,2.7,2118.1,2116.9,19.88]
[1625165725393,0.01738177,2117.4,2116.9,11.88]
[1625165725793,3.2808,2118.0,2117.0,0.08]
[1625165725991,3.2808,2118.0,2117.2,7.08149]
[1625165726190,3.2808,2118.0,2117.2,12.09149]
[1625165727274,3.2808,2118.0,2117.2,5.01]
[1625165727473,3.2808,2118.0,2117.1,14.4517]
[1625165727576,5.01,2118.0,2117.1,9.4417]
[1625165727675,5.01,2118.0,2117.1,14.4517]
[1625165727829,2.7,2118.1,2117.1,14.4517]
[1625165727925,7.71,2118.1,2117.1,9.4417]
[1625165728030,7.71,2118.1,2116.8,10.463]
[1625165728128,11.4254,2118.1,2116.8,15.473]
[1625165728230,18.50763,2118.1,2116.9,9.44237]
[1625165728430,18.50763,2118.1,2116.8,10.463]
[1625165728532,0.06,2118.0,2116.8,10.463]
[1625165728982,0.06,2118.0,2116.6,16.31299]
[1625165729080,0.06,2118.0,2116.6,6.87]
[1625165729180,20.30038228,2118.0,2116.6,6.87]
[1625165729279,1.72045125,2118.0,2116.6,6.87]
[1625165729384,7.08394,2117.5,2116.6,6.87]
[1625165729544,10.97544,2117.5,2116.6,6.87]
[1625165729646,3.8915,2117.5,2116.6,6.87]
[1625165730140,3.8915,2117.5,2116.4,10.8924]
[1625165730393,3.8915,2117.5,2116.4,23.9024]
[1625165730542,3.8915,2117.5,2116.5,0.08]
[1625165730642,7.08275,2117.9,2116.8,7.08267]
[1625165730843,12.09275,2117.9,2116.8,12.09267]
[1625165731292,12.09275,2117.9,2116.4,20.33644]
[1625165732272,5.01,2117.9,2116.5,0.1]
[1625165732369,2.7,2118.1,2116.5,4.1389]
[1625165732469,2.7,2118.1,2116.6,15.15]
[1625165732566,2.7,2118.1,2116.6,20.36]
[1625165732666,2.7,2118.1,2116.6,30.91253883]
[1625165732869,2.7,2118.1,2116.7,0.12]
[1625165733070,2.7,2118.1,2116.7,0.27]
[1625165733169,2.7,2118.1,2116.8,2.55253883]
[1625165733371,2.7,2118.1,2117.0,9.44174]
[1625165733620,2.7,2118.1,2117.0,14.45174]
[1625165734214,2.7,2118.1,2117.0,5.01]
[1625165734317,9.78154,2118.1,2117.0,5.01]
[1625165734474,9.78154,2118.1,2116.8,17.19953549]
[1625165734575,14.79154,2118.1,2116.8,12.18953549]
[1625165734675,14.79154,2118.1,2116.8,5.10732549]
[1625165734777,14.79154,2118.1,2116.6,9.44289]
[1625165734928,0.1,2118.0,2116.6,9.44289]
[1625165735173,10.9498,2118.1,2116.6,14.45289]
[1625165735273,1.72045125,2118.0,2116.6,5.01]
[1625165735427,1.72045125,2118.0,2116.5,10.318]
[1625165735428,7.08382,2117.4,2116.5,10.318]
[1625165735522,15.46282,2117.4,2116.4,7.08344]
[1625165735622,15.46282,2117.4,2116.4,12.09344]
[1625165735728,15.46282,2117.4,2116.3,10.7839]
[1625165737397,15.46282,2117.4,2116.3,17.86786]
[1625165737698,15.46282,2117.4,2116.3,22.87786]
[1625165739420,15.46282,2117.4,2116.3,22.82786]
[1625165741074,15.46282,2117.4,2116.3,7.08396]
[1625165741975,8.379,2117.4,2116.3,7.08396]
[1625165742078,4.1535,2117.5,2116.3,7.08396]
[1625165742179,11.70615125,2117.7,2116.3,9.63649883]
[1625165742283,9.9857,2117.7,2116.4,0.15]
[1625165742625,9.9857,2117.7,2116.5,2.55478666]
[1625165742777,9.9857,2117.7,2116.6,0.15]
[1625165742877,10.4591,2117.9,2116.6,4.4133]
[1625165743022,10.4591,2117.9,2116.6,9.4233]
[1625165743120,10.4591,2117.9,2116.6,11.97808666]
[1625165743321,10.4591,2117.9,2116.7,2.55253883]
[1625165743521,10.4591,2117.9,2116.7,7.71253883]
[1625165743723,10.4591,2117.9,2117.0,7.0818]
[1625165743822,10.4591,2117.9,2116.8,9.44239]
[1625165743926,10.4591,2117.9,2116.8,14.45239]
[1625165745413,10.4591,2117.9,2116.8,22.45239]
[1625165745516,15.4691,2117.9,2116.8,14.45239]
[1625165745715,10.4591,2117.9,2116.8,14.45239]